Cogmind - Beta 16.1 @@@ ROGUE MODE // 2026.02.11 @ 23:59:50 Player: SunShine214 Result: Destroyed by H-55 Commando via exploding Fusion Modulator Performance ------------- Evolutions (3) 1500 Regions Visited (6) 1200 Robots Destroyed (48) 240 Value Destroyed (1270) 1270 Prototype IDs (24) 480 Alien Tech Used (0) 0 Bonus (391) 391 TOTAL SCORE: 5081 Bonus ------- Follower Combat Kills 91 Aligned with FarCom 300 Cogmind --------- Core Integrity 0/700 Matter 135/300 Energy 100/100 System Corruption 7% Temperature Cool (24) Movement Core (200) Ox3 Location -7/Factory Parts ------- > --- POWER (1) -------- (None) > --- PROPULSION (5) --- (None) > --- UTILITY (5) ------ Small Storage Unit Improved Light Armor Plating Hacking Suite > --- WEAPON (2) ------- Longsword +1 > --- INVENTORY (8) ---- Micro Nuclear Core Scrap Suit Improved Signal Interpreter Utility Shielding Great Maul Peak State ------------ > --- POWER ------------ Micro Nuclear Core > --- PROPULSION ------- Light Treads Light Treads Light Treads > --- UTILITY ---------- Small Storage Unit Structural Scanner Improved Medium Armor Plating Hacking Suite Hacking Suite > --- WEAPON ----------- Cooled Pulse Rifle Longsword +1 > --- INVENTORY -------- Light Nuclear Core Scrap Suit Improved Signal Interpreter Utility Shielding Missile Launcher Missile Launcher Great Maul [Rating: 34] Favorites ----------- Power Light Nuclear Core Engine Deuterium Engine Power Core Light Nuclear Core Propulsion Light Treads Treads Light Treads Utility Small Storage Unit Device Sensor Array Storage Small Storage Unit Hackware Hacking Suite Protection Improved Medium Armor Plating Weapon Small Laser Energy Gun Small Laser Ballistic Gun Light Assault Rifle Launcher Missile Launcher Special Weapon Mining Laser Slashing Weapon Longsword +1 Build | -11 -10 -10 -10 -9 -8 -7 ------- Run | Yrd Mat Min Exi Min Mat Fac Slots Evolved 6 | . . . . . 4 2 Power . | . . . . . . . Propulsion 3 | . . . . . 2 1 Utility 3 | . . . . . 2 1 Weapon . | . . . . . . . Parts Attached 33 | 7 9 2 1 . 5 9 Power 8 | 1 1 1 . . 2 3 Engine 4 | 1 . 1 . . 1 1 Core 4 | . 1 . . . 1 2 Reactor . | . . . . . . . Propulsion 5 | 2 2 . . . 1 . Treads 5 | 2 2 . . . 1 . Leg . | . . . . . . . Wheel . | . . . . . . . Hover . | . . . . . . . Flight . | . . . . . . . Utility 10 | 2 2 . . . 2 4 Device 4 | 1 1 . . . 1 1 Storage 2 | 1 1 . . . . . Processor . | . . . . . . . Hackware 2 | . . . . . 1 1 Protection 2 | . . . . . . 2 Artifact . | . . . . . . . Weapon 10 | 2 4 1 1 . . 2 Energy Gun 4 | 1 2 . . . . 1 Energy Cannon . | . . . . . . . Ballistic Gun 2 | 1 1 . . . . . Ballistic Cannon . | . . . . . . . Launcher 2 | . . 1 . . . 1 Special Weapon 1 | . 1 . . . . . Impact Weapon . | . . . . . . . Slashing Weapon 1 | . . . 1 . . . Piercing Weapon . | . . . . . . . Special Melee Weapon . | . . . . . . . Unidentified Prototypes 1 | . . . . . . 1 Parts Lost 17 | . 4 . . . 1 12 Power 3 | . 1 . . . . 2 Propulsion 4 | . 1 . . . . 3 Utility 6 | . 1 . . . 1 4 Weapon 4 | . 1 . . . . 3 Highest Loss Streak 9 | . 1 . . . 1 9 To Critical Strikes . | . . . . . . . Average Backups 6 | . 6 7 7 7 6 6 Power . | . . . . . . 1 Propulsion 1 | . 3 2 . . . . Utility 2 | . 1 3 4 4 3 2 Weapon 2 | . 1 1 3 3 3 2 Tool/Special . | . . . . . . . Unused Backups 12 | . 2 5 . . 1 4 Power . | . . . . . . . Propulsion 6 | . 2 4 . . . . Utility 5 | . . 1 . . 1 3 Weapon 1 | . . . . . . 1 Tool/Special . | . . . . . . . Average Slot Usage (%) 80 | . 81 90 91 100 74 67 Engine 4 | . 1 5 14 14 8 2 Core 2 | . 3 . . . . 4 Treads 23 | . 26 28 28 28 21 16 Device 9 | . 8 14 14 14 14 5 Storage 11 | . 14 14 14 14 9 7 Hackware 2 | . . . . . 1 10 Protection 1 | . . . . . . 4 Energy Gun 10 | . 11 14 14 14 9 5 Ballistic Gun 6 | . 14 9 . . . . Slashing Weapon 3 | . . . 6 13 7 7 Peak Build Rating 34 | 9 10 13 18 18 23 34 Average Rating 14 | 6 7 8 13 17 18 27 On Entrance 11 | . 9 7 12 18 13 22 Avg Prop Armor Cover (%) . | . . . . . . . Naked Turns . | . . . . . . . Heaviest Build 30 | 14 14 22 19 22 22 30 Greatest Support 60 | 40 40 40 40 40 60 60 Greatest Overweight (x) 5 | . . . . . . 5 Average Overweight (x) . | . . . . . . . Largest Inventory Capacity 8 | 8 8 8 8 8 8 8 Average Capacity 7 | 7 8 8 8 8 8 8 Most Carried 8 | 1 8 8 8 8 8 8 Average Carried 7 | . 6 7 8 8 7 7 Final Capacity 8 | 8 8 8 8 8 8 8 Final Carried 8 | 1 8 7 8 8 8 6 Class Distribution -------------------- 68% | Mutant 19% | Scavenger-Mutant 10% | Assassin Dominant Class ---------------- Mutant | -10/Materials Mutant | -10/Mines Mutant | -10/Exiles Assassin | -9/Mines Assassin | -8/Materials Scavenger-Mutant | -7/Factory Resources | -11 -10 -10 -10 -9 -8 -7 ----------- Run | Yrd Mat Min Exi Min Mat Fac Matter Collected 724 | 279 184 10 . 88 45 118 Remotely . | . . . . . . . Salvage Created 1587 | 194 818 . . . 99 476 Parts 101 | 15 52 . . . 4 30 Haulers Intercepted 2 | . 2 . . . . . Recyclers Shooed 6 | . 5 . . . . 1 Parts Field Recycled . | . . . . . . . Retrieved Matter . | . . . . . . . Parts Self-Destructed . | . . . . . . . Prevented . | . . . . . . . Parts Restored . | . . . . . . . Kills | -11 -10 -10 -10 -9 -8 -7 ------- Run | Yrd Mat Min Exi Min Mat Fac Combat Hostiles Destroyed 29 | . 13 . . 2 2 12 Melee 6 | . . . . . 2 4 Guns 13 | . 12 . . . . 1 Cannons 1 | . 1 . . . . . AOE 9 | . . . . 2 . 7 Classes Destroyed 13 | 2 7 . . 1 . 3 Worker 2 | . 1 . . . . 1 Builder 3 | . 1 . . . . 2 Tunneler 4 | 4 . . . . . . Hauler 2 | . 2 . . . . . Recycler 5 | 1 4 . . . . . Operator 3 | . 2 . . . . 1 Watcher 2 | . 2 . . . . . Swarmer 6 | . 6 . . . . . Grunt 10 | . 7 . . . 2 1 Sentry 1 | . . . . . . 1 Hunter 5 | . . . . . . 5 Programmer 5 | . . . . . . 5 Assembled 2 | . . . . 2 . . Best Kill Streak 10 | 3 6 . . 2 2 10 Combat Bots Only 8 | . 5 . . 2 2 8 Max Kills in Single Turn 3 | 1 2 . . 2 1 3 Gunslinging . | . . . . . . . Exploded 2 | . . . . 2 . 2 Melee 1 | . . . . . 1 1 Uniques/NPCs Destroyed . | . . . . . . . Combat | -11 -10 -10 -10 -9 -8 -7 -------- Run | Yrd Mat Min Exi Min Mat Fac Hostile Shots Fired 329 | . 82 . . 6 6 235 Missed 100 | . 19 . . 4 1 76 Hits 229 | . 63 . . 2 5 159 Projectile 229 | . 63 . . 2 5 159 AOE 2 | . . . . . . 2 Critical Strikes 5 | . 1 . . . . 4 Damage Taken 2771 | 22 634 14 . 32 95 1974 Core 845 | 11 126 . . . . 708 Absorbed by Shields 28 | . . . . . . 28 Core Remaining (%) 80 | 95 . . . 45 100 . Volleys Fired 137 | 9 101 . . 1 2 24 Largest 2 | 2 2 . . 2 1 1 Hottest 120 | 60 120 . . 76 40 36 Shots Fired 202 | 18 155 . . 3 2 24 Gun 184 | 18 152 . . 2 2 10 Cannon . | . . . . . . . Launcher 15 | . . . . 1 . 14 Special 3 | . 3 . . . . . Kinetic 110 | 9 101 . . . . . Thermal 61 | . 47 . . 2 2 10 Explosive 15 | . . . . 1 . 14 Electromagnetic 16 | 9 7 . . . . . Robot Hit Streak 14 | 11 14 . . 1 2 8 Robot Miss Streak 8 | 1 8 . . 1 1 3 Penetration Max . | . . . . . . . Secondary Targets 1 | . 1 . . . . . Max Gunslinging Chain 1 | . 1 . . . . . Shots Hit Robots 138 | 12 85 . . 1 6 34 Core Hits 80 | 7 42 1 . 2 2 26 Critical Kills 2 | . 2 . . . . . Critical Parts Destroyed 1 | . 1 . . . . . Critical Strikes 4 | . 3 . . . . 1 Destroy 3 | . 3 . . . . . Sever 1 | . . . . . . 1 Melee Attacks 32 | . . . . . 5 27 Impact . | . . . . . . . Slashing 32 | . . . . . 5 27 Piercing . | . . . . . . . Sneak Attacks 1 | . . . . . . 1 Combat Hostiles . | . . . . . . . Follow-up Attacks . | . . . . . . . Damage Inflicted 3422 | 199 858 4 . 196 250 1915 Guns 1145 | 146 800 . . 11 12 176 Cannons . | . . . . . . . Explosions 1202 | 53 . . . 183 . 966 Melee 1011 | . . . . . 238 773 Ramming 16 | . 10 4 . 2 . . Kinetic 542 | 24 518 . . . . . Thermal 560 | 53 308 . . 11 12 176 Explosive 1149 | . . . . 183 . 966 Electromagnetic 144 | 122 22 . . . . . Impact . | . . . . . . . Slashing 1011 | . . . . . 238 773 Piercing . | . . . . . . . Highest Corruption 7 | . 2 2 2 2 . 7 Average Corruption 2 | . 2 2 2 2 . 6 Corruption Purged . | . . . . . . . Corruption Blocked . | . . . . . . . Effects 26 | . 2 6 6 5 . 7 Message Errors 5 | . . . 2 1 . 2 Matter Fused 7 | . 2 1 2 1 . 1 Heat Flow Errors 5 | . . . 1 2 . 2 Energy Discharges 3 | . . 2 1 . . . Parts Rejected 1 | . . . . . . 1 Data Loss (minor) 2 | . . 1 . . . 1 Data Loss (major) 2 | . . 2 . . . . Misfires 1 | . . . . 1 . . Overload Shots . | . . . . . . . Overflow Damage 89 | 5 . . . 8 . 76 Projectiles . | . . . . . . . Explosions 43 | 5 . . . 8 . 30 Melee 46 | . . . . . . 46 Knockbacks 1 | . . 1 . . . . Impact 1 | . . 1 . . . . Kinetic . | . . . . . . . Secondary . | . . . . . . . Self-Inflicted Damage 23 | 23 . . . . . . Shots 1 | 1 . . . . . . Rammed 3 | . 1 1 . 1 . . Targets Rammed 4 | . 2 1 . 1 . . Kicked . | . . . . . . . Crushed 1 | . 1 . . . . . Highest Temperature 246 | 40 161 . 97 149 . 246 Average Temperature 38 | 20 30 . 52 56 . 114 Received Heat Transfer 402 | . 219 . . . 54 129 Effects 1 | . . . . . . 1 Interference 1 | . . . . . . 1 Siege Activations . | . . . . . . . Martial Activations . | . . . . . . . Shielding Activations . | . . . . . . . Robots Disrupted . | . . . . . . . Combat Hostiles . | . . . . . . . Robots Corrupted . | . . . . . . . Combat Hostiles . | . . . . . . . Parts Fried 1 | 1 . . . . . . Impact Corruptions . | . . . . . . . Robots Melted . | . . . . . . . Combat Hostiles . | . . . . . . . Parts Melted 2 | . 1 . . . . 1 Heat Transferred 1183 | 100 700 . . 25 25 333 Parts Sabotaged . | . . . . . . . Parts Stolen . | . . . . . . . Parts Stripped . | . . . . . . . Power Chain Reactions 1 | 1 . . . . . . Alert | -11 -10 -10 -10 -9 -8 -7 ------- Run | Yrd Mat Min Exi Min Mat Fac Maximum Alert Level 1 | . . . . . . 1 Low Security (%) 99 | 100 100 100 . 100 100 99 Level 1 . | . . . . . . . Level 2 . | . . . . . . . Level 3 . | . . . . . . . Level 4 . | . . . . . . . Level 5 . | . . . . . . . High Security . | . . . . . . . Max Security . | . . . . . . . Peak Influence 202 | 15 96 . . 96 59 202 Initial 21 | . . . . . 1 21 Average 25 | 2 22 . . 35 7 43 Influence Increases 1043 | 25 393 . . 111 104 410 Destroy 0b10 Robot/C 640 | . 260 . . 60 60 260 Destroy 0b10 Robot/NC 120 | 25 60 . . 5 10 20 Destroy Leader 132 | . 58 . . 10 14 50 Allied During Kill 23 | . . . . 11 11 1 Successful Hack 29 | . 14 . . . 8 7 Disable Machine 45 | . . . . 15 . 30 Destroy Structure 54 | . 1 . . 10 1 42 Influence Decreases 898 | 25 393 . . 106 60 314 Entered New Map 32 | . . . . . 4 28 Time Decay 713 | 25 353 . . 106 36 193 Lost Part 112 | . 40 . . . . 72 Lost Ally 41 | . . . . . 20 21 Squads Dispatched 9 | . 2 . . . 2 5 Investigation 2 | . . . . . 1 1 Extermination 1 | . . . . . . 1 Reinforcement 5 | . 2 . . . . 3 Assault . | . . . . . . . Garrison 1 | . . . . . 1 . Intercept . | . . . . . . . Searches Triggered . | . . . . . . . Construction Impeded 1 | . . . . . . 1 Haulers Reinforced . | . . . . . . . Active Scanning Responses . | . . . . . . . Cargo Convoy Interrupts 1 | . . . . . . 1 Stealth | -11 -10 -10 -10 -9 -8 -7 --------- Run | Yrd Mat Min Exi Min Mat Fac Distress Signals 3 | . . . . . . 3 Communications Jammed . | . . . . . . . Distress Signals . | . . . . . . . Times Spotted 72 | . 29 . . 12 6 25 Peak Tracking Total 13 | . 6 . . 4 3 13 Tactical Retreats . | . . . . . . . Traps | -11 -10 -10 -10 -9 -8 -7 ------- Run | Yrd Mat Min Exi Min Mat Fac Traps Triggered 3 | . 1 . . . . 2 Indirectly . | . . . . . . . Trap Hack Attempts . | . . . . . . . Triggered . | . . . . . . . Disarmed . | . . . . . . . Reprogrammed . | . . . . . . . Reused . | . . . . . . . Traps Extracted . | . . . . . . . Installed . | . . . . . . . Triggered . | . . . . . . . Machines | -11 -10 -10 -10 -9 -8 -7 ---------- Run | Yrd Mat Min Exi Min Mat Fac Machines Disabled 3 | . . . . 1 . 2 Max in Single Turn 1 | . . . . . . 1 Machines Repaired . | . . . . . . . Machines Dismantled . | . . . . . . . Machines Sabotaged . | . . . . . . . Overloaded Fab Kills . | . . . . . . . Hacking | -11 -10 -10 -10 -9 -8 -7 --------- Run | Yrd Mat Min Exi Min Mat Fac Machines Accessed 13 | . 5 1 1 . 2 4 Terminals 11 | . 5 . . . 2 4 Fabricators . | . . . . . . . Repair Stations . | . . . . . . . Recycling Units . | . . . . . . . Scanalyzers . | . . . . . . . Garrison Access . | . . . . . . . Total Hacks 20 | . 6 1 1 . 4 8 Successful 8 | . 4 1 1 . 1 1 Failed 12 | . 2 . . . 3 7 Catastrophic 5 | . 2 . . . 1 2 Database Lockouts . | . . . . . . . Manual 11 | . 1 . 1 . 4 5 Terminals 18 | . 6 . . . 4 8 Fabricators . | . . . . . . . Repair Stations . | . . . . . . . Recycling Units . | . . . . . . . Scanalyzers . | . . . . . . . Garrison Access . | . . . . . . . Terminal Hacks 8 | . 4 1 1 . 1 1 Open Door 1 | . . 1 . . . . Branch Access Points 3 | . 1 . . . 1 1 Unreport Threat 1 | . 1 . . . . . Hauler Manifests 1 | . 1 . . . . . Registered Prototypes 1 | . 1 . . . . . Proto ID Catalog 1 | . . . 1 . . . Fabricator Hacks . | . . . . . . . Repair Station Hacks . | . . . . . . . Recycling Unit Hacks . | . . . . . . . Scanalyzer . | . . . . . . . Garrison Access Hacks . | . . . . . . . Unauthorized Hacks . | . . . . . . . Terminals . | . . . . . . . Fabricators . | . . . . . . . Repair Stations . | . . . . . . . Recycling Units . | . . . . . . . Scanalyzers . | . . . . . . . Garrison Access . | . . . . . . . Data Cores Recovered . | . . . . . . . Used . | . . . . . . . Hacking Detections 9 | . 3 . . . 2 4 Full Trace Events 2 | . . . . . 1 1 Feedback Events 1 | . . . . . . 1 Hackware Fried 1 | . . . . . . 1 Feedback Blocked . | . . . . . . . Robot Schematics Acquired . | . . . . . . . Robots Built . | . . . . . . . Authchips . | . . . . . . . Time . | . . . . . . . Total Robot Build Rating . | . . . . . . . Part Schematics Acquired . | . . . . . . . Parts Built . | . . . . . . . Authchips . | . . . . . . . Time . | . . . . . . . Total Part Build Rating . | . . . . . . . Part Studies Acquired . | . . . . . . . Parts Repaired . | . . . . . . . Time . | . . . . . . . Parts Recycled . | . . . . . . . Recycled Matter . | . . . . . . . Retrieved Matter . | . . . . . . . Retrieved Components . | . . . . . . . Parts Scanalyzed . | . . . . . . . Part Schematics Acquired . | . . . . . . . Parts Damaged . | . . . . . . . Bothacking | -11 -10 -10 -10 -9 -8 -7 ------------ Run | Yrd Mat Min Exi Min Mat Fac Used RIF Installer . | . . . . . . . Robots Hacked . | . . . . . . . Non-combat . | . . . . . . . Combat . | . . . . . . . Robot Hacks Applied . | . . . . . . . Relay Couplers Released . | . . . . . . . Fabnet Peak Effective % . | . . . . . . . Robots Rewired . | . . . . . . . Allies Hacked . | . . . . . . . Hacks Repelled . | . . . . . . . Allies | -11 -10 -10 -10 -9 -8 -7 -------- Run | Yrd Mat Min Exi Min Mat Fac Total Allies 3 | . . 3 . . . . Largest Group 3 | . . 3 3 3 3 2 Highest-Rated Group 40 | . . 40 40 40 40 24 Highest-Rated Ally 16 | . . 16 16 16 16 16 Total Orders . | . . . . . . . Ally Attacks 59 | . . . . 25 27 7 Total Damage 632 | . . . . 227 337 68 Kills 11 | . . . . 7 3 1 Allies Corrupted . | . . . . . . . Allies Melted . | . . . . . . . Intel | -11 -10 -10 -10 -9 -8 -7 ------- Run | Yrd Mat Min Exi Min Mat Fac Active Infowar (turns) 3173 | 43 998 421 346 282 275 808 Sensors 2002 | . 715 421 346 282 238 . Terrain 326 | 43 283 . . . . . Structural 1023 | . . . . . 215 808 Robot Analysis Total . | . . . . . . . Derelict Logs Recovered 1 | . . 1 . . . . Drone Launches . | . . . . . . . Drone Recoveries . | . . . . . . . Exploration | -11 -10 -10 -10 -9 -8 -7 ------------- Run | Yrd Mat Min Exi Min Mat Fac Turns Passed 4102 | 115 1624 421 346 282 275 1039 Spaces Moved 2125 | 53 840 254 216 170 155 437 Core 59 | 5 . . . . . 54 Treads 2066 | 48 840 254 216 170 155 383 Legs . | . . . . . . . Wheels . | . . . . . . . Hover . | . . . . . . . Flight . | . . . . . . . Fastest Speed 50 | 50 160 160 160 160 160 150 Average Speed 161 | 149 160 160 160 160 160 170 Slowest Speed 300 | 160 160 160 160 160 160 300 Overloaded Moves . | . . . . . . . Propulsion Burnouts . | . . . . . . . Robots Hopped . | . . . . . . . Potential Cave-ins . | . . . . . . . Cave-ins Triggered . | . . . . . . . Exploration Rate (%) 43 | 4 94 56 60 51 23 14 Regions Visited 6 Branch Regions 3 Pre-discovered Areas . | . . . . . . . Known Exits Taken 1 | . 1 . . . . . Unknown Exits Taken 5 | 1 . 1 1 1 1 . Scrap Searched 2 | . . 1 . 1 . . Spaces Dug 9 | . . . . . . 9 Terrain Destroyed 76 | 2 1 . . 12 . 61 Melee 9 | . . . . . . 9 Projectile 1 | . 1 . . . . . AOE 66 | 2 . . . 12 . 52 Terrain Rammed . | . . . . . . . Walls Destroyed . | . . . . . . . Machines Disabled . | . . . . . . . Actions | -11 -10 -10 -10 -9 -8 -7 --------- Run | Yrd Mat Min Exi Min Mat Fac Total 2568 | 69 982 271 217 177 175 677 Wait 199 | . 14 3 . 5 6 171 Move 2120 | 52 839 253 215 170 154 437 Hop . | . . . . . . . Pick Up 17 | 1 9 5 . . 1 1 Fast Attach 19 | 7 3 1 1 . 1 6 Attach 5 | . 1 . . . 2 2 Detach 2 | . 1 . 1 . . . Swap 13 | . 5 1 . 1 3 3 Drop 18 | . 7 7 . . 1 3 Fire 137 | 9 101 . . 1 2 24 Melee 32 | . . . . . 5 27 Ram . | . . . . . . . Kick . | . . . . . . . Crush 3 | . 2 1 . . . . Escape Stasis 3 | . . . . . . 3 Rewire . | . . . . . . . Trap . | . . . . . . . Miscellaneous . | . . . . . . . Route ------- -11/Scrapyard -10/Materials (discovered 6 exits: [*Mat x3] / *Min x2 / [*Sub]) -10/Mines (discovered 2 exits: [*Mat] / *Exi) -10/Exiles -9/Mines -8/Materials -7/Factory (discovered 3 exits: Sto / *Low x2) History --------- Turn | Location | Event 9 | -11/Scrapyard | Discovered new exit (range 13) 116 | -11/Scrapyard | Entered Materials 303 | -10/Materials | Build established: Mutant 344 | -10/Materials | Discovered new exit (range 16) 581 | -10/Materials | Discovered new exit (range 10) 608 | -10/Materials | Discovered new exit (range 15) 635 | -10/Materials | Discovered new exit (range 10) 708 | -10/Materials | Core integrity fell below 50% 1054 | -10/Materials | Identified exit to Mines 1086 | -10/Materials | Discovered new exit (range 8) 1440 | -10/Materials | Discovered new exit (range 8) 1740 | -10/Materials | Entered Mines 1771 | -10/Mines | Met a Derelict bent on vengeance 1848 | -10/Mines | Assisted by bots powering up and referring to "LRC-V3" 1902 | -10/Mines | Found a Scrap Suit stashed away for nefarious purposes 1913 | -10/Mines | Found Scrap Suit 1998 | -10/Mines | Met a Derelict who couldn't figure out how to use a Trap Extractor 2082 | -10/Mines | Discovered new exit (range 7) 2149 | -10/Mines | Deemed a non-threat by the Exiles lab entrance 2150 | -10/Mines | Discovered new exit (range 5) 2161 | -10/Mines | Entered Exiles 2161 | -10/Exiles | Accompanied by 3 allies 2200 | -10/Exiles | Met 8R-AWN 2231 | -10/Exiles | Met EX-HEX 2272 | -10/Exiles | Met EX-BIN 2295 | -10/Exiles | Aligned with FarCom system 2296 | -10/Exiles | Given EX-Vault access code 2333 | -10/Exiles | Opened EX-Vault 2344 | -10/Exiles | Found Longsword +1 2381 | -10/Exiles | Warned to stay clear of 0b10 Research branches 2431 | -10/Exiles | Met EX-DEC 2487 | -10/Exiles | Discovered new exit (range 10) 2507 | -10/Exiles | Left Exiles lab with Longsword +1 2507 | -10/Exiles | Entered Mines 2507 | -9/Mines | Accompanied by 3 allies 2508 | -9/Mines | Assembled infested the area 2513 | -9/Mines | Assisted by a Guerilla fighting off Assembled 2718 | -9/Mines | Received a Rocket Launcher from a helpful Derelict 2775 | -9/Mines | Discovered new exit (range 7) 2789 | -9/Mines | Entered Materials 2789 | -8/Materials | Accompanied by 3 allies 2789 | -8/Materials | Evolved 4 slots: Propulsion x2, Utility x2 3031 | -8/Materials | Garrison activated, responded to threat 3039 | -8/Materials | Discovered new exit (range 11) 3064 | -8/Materials | Entered Factory 3064 | -7/Factory | Accompanied by 2 allies 3064 | -7/Factory | Evolved 2 slots: Propulsion x1, Utility x1 3327 | -7/Factory | Build established: Scavenger-Mutant 3609 | -7/Factory | Discovered new exit (range 10) 3758 | -7/Factory | Hacking Suite fried by hacking feedback 3778 | -7/Factory | Cargo convoy interrupted 3859 | -7/Factory | Core integrity fell below 50% 3882 | -7/Factory | Core integrity fell below 20% 3909 | -7/Factory | Identified exit to Storage 3909 | -7/Factory | Identified exit to Lower Caves 3914 | -7/Factory | Destroyed 8 combat bots 3926 | -7/Factory | Lost 9 parts (1p2n3u3w) 4081 | -7/Factory | Build established: Mutant 4103 | -7/Factory | Destroyed by H-55 Commando via exploding Fusion Modulator Last Messages --------------- 03947_ U-05 Engineer lays Concrete. 03955_ K-01 Serf collects debris. 03967_ R-06 Scavenger collects Unknown Storage. 03968_ U-05 Engineer builds a Wall. 03970_ K-01 Serf collects debris. 03970_ R-06 Scavenger collects Targeting Computer. 03971_ System corrupted: Matter fused (-6). 03976_ K-01 Serf collects debris. 04032_ System corrupted: Heat flow error (+271). 04034_ Overheating: System interference. 04034_ Longsword +1 temporarily disabled. 04054_ IZY7M35 %K08#1FF|A68P5&I 04103_ Lgt. Nuclear Core destroyed. Map ----- +----------------------------------------------------+ | ?????????????????????????## """" ##????????? | | ?????????????????????????## """"" ##????????? | | ?????????????????????????## ##????????? | | ????????????????? ## *%= ## ?? | | ?????????????????############## =[#############/?? | | ????????????????? [%%* ?? | | ????????????????? *! ?? | | ????????????????? ? | | ????????????????"?""" ? | | ????????????????" ?"" ^%! ? | | ???????????????"" """ ###+######/### # # ? | | ???????????????? ? # T= # ? | | ????????????????" """ ?# % #! ? | | ????????????????" """ # g""""# ? | | ????????????????" """ + """"# """" ?? | | ????????????? # """"# """" "" # #?? | | ????????? ?# g""""# """"""" ###??? | | ??????????######## ??#* """"# ? ###???? | | ?????????????????# ???# """"# """""?????????? | | ?????????????????# ????# """"# """""?????????? | | ?????????????????# ????#g # """""?????????? | | ?????????????????# ??# # """???????????? | | ?????????????????# u ?# # ????????????? | | ?????????????????# w# #######????????????? | | ?????????????????# ;;;;;;;;;#####????????????? | | ?????????????????# ; @ #???????????????? | | ?????????????????# uh; #???????????????? | | ?????????????????+ ; #???????????????? | | ?????????????????# ; #???????????????? | | ?????????????????# ; ;???????????????? | | ?????????????????# u; #???????????????? | | ?????????????????#### ; ;???????????????? | | ????????????????????# ; ! *#???????????????? | | ????????????????????# r##;;;;;####???????????????? | | ????????????????????# ??######??????????????????? | | ????????????????????# ??????????????????????????? | | ????????????????????# u??????????????????????????? | | ????????????????????# ???????????????????????????? | | ????????????????????+ ???????????????????????????? | | ???????????????????o? ???????????????????????????? | | ?????????????????????????????????????????????????? | | ?????????????????????????????????????????????????? | | ??????????????????H??????????????????????????????? | | ?????????????????????????????????????????????????? | | ?????????????????????????????????????????????????? | | ?????????????????????????????????????????????????? | | ?????????????????????????????????????????????????? | | ?????????????????????????????????????????????????? | | ?????????????????????????????????????????????????? | | ?????????????????????????????????????????????????? | +----------------------------------------------------+ Best States ------------- Heat Dissipation 48 Energy Generation 16 Energy Capacity 290 Matter Stores 300 Matter Capacity 300 Sight Range 16 Robot Scan Range 14 Terrain Scan Range 16 Terrain Scan Density 10 Armor Coverage 225 Evasion (%) 40 Recoil Reduction 3 Offensive Hacking 20 Item Schematics ----------------- None Robot Schematics ------------------ None Fabricated ------------ Nothing Repaired ---------- Nothing Studied --------- None Alien Tech Used ----------------- None Achievements -------------- None Challenges ------------ None Game ------ Seed LightpackDrainedSuite Manual? 0 Play Time 00:24:51 Cumulative 64.0 hours Start 2026.02.11 @ 23:35:42 End 2026.02.11 @ 23:59:50 Sessions 1 Manual Loads 0 Difficulty Rogue Special Mode None Game No. 109 Rogue 109 Adventurer 0 Explorer 0 Win Type - Total 0 Types 0/0/0/0/0/0/0/0/0/0 Lore% 35 Gallery% 40 Achievement% 29 Wizard Run 0 Options --------- Layout 1 ASCII 0 Keyboard 1 Movement Arrows Keybinds 0 Fullscreen 1 Font 24/Smallcaps Map View 50x35 Zoom Use 0% Tactical HUD 1 Map Filters NONE Filters NONE Steam 1 RUN: a3ca33af-6598-4f40-b65f-71f745c6b5d3